bitfinex/quotes_SOLUSD_20251119
["timestamp","ask_amount","ask_price","bid_price","bid_amount"]
[1763549890091,3.28419948,139.74,139.73,1.7]
[1763549891591,3.28419948,139.74,139.73,2.36]
[1763549892673,3.28419948,139.74,139.73,1.7]
[1763549894803,0.67,139.76,139.73,2.36]
[1763549894976,3.28419948,139.74,139.73,1.7]
[1763549898688,3.28419948,139.74,139.73,2.36]
[1763549899817,3.28419948,139.75,139.73,2.36]
[1763549900896,0.65,139.81,139.74,13.72302717]
[1763549901085,3.93419948,139.81,139.74,13.72302717]
[1763549901287,22.05515948,139.81,139.75,0.65]
[1763549901488,22.05515948,139.81,139.76,1.7]
[1763549901687,3.93419948,139.81,139.76,1.7]
[1763549901895,18.77096,139.81,139.77,0.65]
[1763549904987,18.12096,139.81,139.77,0.65]
[1763549905182,0.7,139.8,139.77,0.65]
[1763549905595,18.12096,139.81,139.77,0.65]
[1763549905799,18.82096,139.81,139.77,0.65]
[1763549906117,22.10515948,139.81,139.77,0.65]
[1763549906920,0.7,139.8,139.77,0.65]
[1763549908622,2.80131645,139.8,139.77,0.65]
[1763549910222,6.56839896,139.83,139.77,0.65]
[1763549910420,0.7,139.81,139.77,0.65]
[1763549910724,2.10131645,139.8,139.77,0.65]
[1763549911627,2.80131645,139.8,139.77,0.65]
[1763549912025,2.10131645,139.79,139.76,1.7]
[1763549912215,2.10131645,139.78,139.76,1.7]
[1763549912504,2.80131645,139.78,139.76,1.7]
[1763549912898,0.7,139.81,139.77,0.68]
[1763549913129,0.7,139.83,139.77,2.78131645]
[1763549913431,20.22227645,139.82,139.78,0.68]
[1763549913830,20.92227645,139.82,139.78,0.68]
[1763549915102,0.7,139.82,139.78,0.68]
[1763549915812,2.10131645,139.83,139.78,0.68]
[1763549916002,2.80131645,139.83,139.78,0.68]
[1763549916702,0.7,139.82,139.78,0.68]
[1763549918029,2.80131645,139.83,139.78,0.68]
[1763549918221,2.80131645,139.83,139.78,2.78131645]
[1763549918622,2.80131645,139.83,139.78,0.68]
[1763549918926,2.80131645,139.83,139.79,0.68]
[1763549920032,0.7,139.82,139.79,0.68]
[1763549921017,2.10131645,139.81,139.76,13.59014414]
[1763549921212,2.10131645,139.81,139.77,0.68]
[1763549921408,2.80131645,139.81,139.77,0.68]
[1763549921911,0.7,139.8,139.77,0.68]
[1763549922416,2.80131645,139.8,139.77,0.68]
[1763549922797,0.7,139.8,139.77,0.68]
[1763549923213,0.7,139.82,139.77,0.68]
[1763549923425,2.10131645,139.81,139.77,0.68]
[1763549923727,0.7,139.82,139.77,0.68]
[1763549923728,2.10131645,139.8,139.77,0.68]
[1763549924235,0.7,139.79,139.76,2.38]
[1763549926731,2.80131645,139.79,139.76,2.38]
[1763549927933,2.80131645,139.79,139.77,0.68]
[1763549928948,18.82096,139.81,139.77,0.68]
[1763549929242,18.82096,139.81,139.76,1.7]
[1763549929243,2.80131645,139.8,139.76,2.38]
[1763549929445,2.80131645,139.8,139.77,0.68]
[1763549931446,2.10131645,139.8,139.77,0.68]
[1763549931745,2.82131645,139.8,139.77,0.7]
[1763549932845,2.10131645,139.79,139.77,0.7]
[1763549935746,2.82131645,139.8,139.77,0.7]
[1763549936743,2.10131645,139.79,139.77,0.7]
[1763549937247,0.72,139.8,139.77,0.7]
[1763549937455,2.10131645,139.79,139.77,0.7]
[1763549938429,2.82131645,139.79,139.76,2.4]
[1763549938842,2.82131645,139.79,139.77,0.7]
[1763549939148,2.10131645,139.79,139.77,0.7]
[1763549939446,0.72,139.78,139.76,1.7]
[1763549939749,2.10131645,139.78,139.76,2.4]
[1763549939931,2.82131645,139.79,139.76,2.4]
[1763549942140,2.10131645,139.78,139.76,2.4]
[1763549942839,2.82131645,139.79,139.76,2.4]
[1763549946863,2.10131645,139.79,139.77,0.7]
[1763549947361,2.82131645,139.79,139.76,2.4]
[1763549947957,2.82131645,139.79,139.76,1.7]
[1763549948151,2.82131645,139.79,139.77,0.7]
[1763549949593,2.82131645,139.79,139.76,2.4]
[1763549951160,2.10131645,139.79,139.76,2.4]
[1763549951356,2.10131645,139.77,139.71,11.89014414]
[1763549951557,0.72,139.78,139.72,13.59014414]
[1763549951863,2.10131645,139.77,139.72,14.29014414]
[1763549952054,2.10131645,139.77,139.73,0.7]
[1763549953772,0.72,139.78,139.73,0.7]
[1763549953966,2.10131645,139.77,139.73,0.7]
[1763549957370,2.10131645,139.76,139.73,0.7]
[1763549958361,2.10131645,139.74,139.73,0.7]
[1763549958647,2.10131645,139.75,139.73,0.7]
[1763549964180,2.10131645,139.76,139.73,0.7]
[1763549967088,20.22227645,139.77,139.73,0.7]
[1763549967383,2.10131645,139.78,139.73,2.80131645]
[1763549967686,2.10131645,139.78,139.74,0.71]
[1763549967882,2.10131645,139.78,139.75,1.7]
[1763549968386,2.10131645,139.78,139.76,0.71]
[1763549968788,3.28461422,139.78,139.76,0.71]
[1763549970788,3.97461422,139.78,139.76,0.71]
[1763549970994,3.28461422,139.77,139.76,0.71]
[1763549973093,3.28461422,139.78,139.76,0.71]
[1763549973492,3.28461422,139.77,139.76,0.71]
[1763549974194,3.28461422,139.78,139.76,0.71]
[1763549979897,3.28461422,139.79,139.76,0.71]
[1763549982998,3.28461422,139.8,139.76,0.71]
[1763549983776,3.28461422,139.8,139.76,18.83096]
[1763549984200,3.28461422,139.8,139.77,0.71]
[1763549985181,3.28461422,139.8,139.78,1.7]
[1763549985601,0.69,139.81,139.78,1.7]
[1763549985895,3.28461422,139.82,139.79,0.71]
[1763549986097,3.97461422,139.83,139.79,0.71]
[1763549987192,3.28461422,139.82,139.79,0.71]
[1763549987908,3.28461422,139.82,139.79,3.99461422]
[1763549988510,3.28461422,139.82,139.8,0.71]
[1763549990094,3.96461422,139.82,139.79,3.99461422]
[1763549991195,3.96461422,139.81,139.78,1.7]
[1763549991507,3.96461422,139.81,139.75,9.78882769]
[1763549991508,3.28461422,139.79,139.75,48.44074769]
[1763549991697,3.28461422,139.78,139.76,2.41]
[1763549992487,3.28461422,139.78,139.77,0.71]
[1763549992998,3.28461422,139.79,139.77,0.71]
[1763549995613,3.28461422,139.78,139.76,2.41]
[1763549997114,3.96461422,139.78,139.76,2.41]
[1763549997299,3.96461422,139.78,139.76,1.7]
[1763549997502,11.48882769,139.83,139.76,2.41]
[1763549997503,3.96461422,139.79,139.76,2.41]
[1763549998012,0.68,139.78,139.76,2.41]
[1763549998312,3.96461422,139.78,139.76,1.7]
[1763549998789,3.96461422,139.78,139.76,2.41]
[1763549999115,3.28461422,139.78,139.76,2.41]
[1763549999309,3.96461422,139.78,139.76,2.41]
[1763549999814,3.96461422,139.78,139.76,1.7]
[1763550000017,3.28461422,139.78,139.76,2.41]
[1763550000324,3.96461422,139.78,139.76,2.41]
[1763550000914,3.96461422,139.78,139.76,1.7]
[1763550001214,3.28461422,139.77,139.76,1.7]
[1763550001421,3.96461422,139.77,139.76,1.7]
[1763550001616,3.28461422,139.77,139.76,1.7]
[1763550001816,3.96461422,139.79,139.76,2.41]
[1763550002193,3.28461422,139.78,139.76,2.41]
[1763550003888,3.28461422,139.78,139.76,1.7]
[1763550003889,3.96461422,139.78,139.76,1.7]
[1763550004505,3.96461422,139.78,139.76,2.41]
[1763550004791,3.28461422,139.77,139.76,1.7]
[1763550005425,3.96461422,139.77,139.73,18.12096]
[1763550005592,3.28461422,139.75,139.72,0.71]
[1763550005788,3.28461422,139.74,139.72,2.41]
[1763550006718,3.96461422,139.75,139.72,2.41]
[1763550008712,3.28461422,139.75,139.73,0.71]
[1763550008921,3.96461422,139.75,139.72,2.41]
[1763550009630,3.28461422,139.75,139.73,0.71]
[1763550011325,18.80096,139.79,139.73,0.71]
[1763550011498,18.12096,139.8,139.73,22.11557422]
[1763550011499,0.68,139.8,139.73,22.11557422]
[1763550011693,3.28461422,139.79,139.74,13.78344191]
[1763550012002,3.28461422,139.79,139.75,1.7]
[1763550012315,3.28461422,139.79,139.75,2.41]
[1763550012520,3.96461422,139.79,139.76,0.71]
[1763550012720,0.68,139.78,139.75,2.41]
[1763550012901,3.96461422,139.78,139.75,2.41]
[1763550013096,3.28461422,139.77,139.75,1.7]
[1763550013297,3.28461422,139.76,139.71,0.71]
[1763550013495,3.28461422,139.72,139.71,0.71]
[1763550013694,3.28461422,139.73,139.71,0.71]
[1763550014919,3.28461422,139.76,139.71,0.71]
[1763550015122,3.28461422,139.76,139.71,19.54096]
[1763550015123,3.28461422,139.75,139.71,19.54096]
[1763550015310,3.28461422,139.73,139.71,19.54096]
[1763550015495,3.28461422,139.73,139.71,18.12096]
[1763550015694,3.28461422,139.73,139.71,18.83096]
[1763550016199,3.28461422,139.73,139.71,0.71]
[1763550016739,3.96461422,139.72,139.7,1.7]
[1763550016920,3.96461422,139.71,139.7,1.7]
[1763550017429,3.28461422,139.71,139.7,1.7]
[1763550017596,3.28461422,139.71,139.7,2.41]
[1763550018004,3.28461422,139.72,139.7,2.41]
[1763550023227,3.28461422,139.72,139.7,1.7]
[1763550023726,3.94461422,139.72,139.7,1.7]
[1763550023923,3.94461422,139.71,139.7,1.7]
[1763550024245,3.28461422,139.71,139.7,1.7]
[1763550027119,3.28461422,139.71,139.69,0.72]
[1763550028839,2.10419972,139.71,139.69,0.72]
[1763550031335,0.66,139.73,139.69,0.72]
[1763550031336,2.10419972,139.72,139.69,0.72]
[1763550033228,2.10419972,139.71,139.69,0.72]
[1763550033527,2.10419972,139.7,139.67,0.92]
[1763550033731,2.10419972,139.68,139.67,0.92]
[1763550033932,2.10419972,139.69,139.67,0.92]
[1763550034513,2.10419972,139.7,139.68,0.72]
[1763550034716,2.10419972,139.71,139.69,1.7]
[1763550035117,2.10419972,139.71,139.69,2.42]
[1763550036123,2.10419972,139.71,139.7,0.72]
[1763550036436,2.10419972,139.72,139.7,0.72]
[1763550040241,2.10419972,139.75,139.7,20.94515972]
[1763550040423,2.10419972,139.76,139.71,2.10419972]
[1763550040613,4.56892594,139.81,139.72,3.80419972]
[1763550040818,2.76419972,139.78,139.73,9.78882769]
[1763550041021,2.10419972,139.78,139.73,12.61302741]
[1763550041333,2.10419972,139.8,139.75,11.89302741]
[1763550041529,2.10419972,139.8,139.76,1.7]
[1763550041727,2.76419972,139.8,139.77,0.72]
[1763550042738,2.10419972,139.79,139.77,0.72]
[1763550044126,2.76419972,139.79,139.76,0.72]
[1763550044678,2.10419972,139.78,139.76,0.72]
[1763550045933,18.12096,139.83,139.76,0.72]
[1763550046142,2.10419972,139.8,139.77,1.7]
[1763550046344,2.10419972,139.82,139.78,18.12096]
[1763550046537,2.10419972,139.82,139.78,18.84096]
[1763550046847,2.10419972,139.82,139.79,0.72]
[1763550047149,2.10419972,139.83,139.79,0.72]
[1763550047344,2.76419972,139.83,139.79,0.72]
[1763550048346,0.1,139.84,139.8,1.7]
[1763550048552,2.10419972,139.83,139.8,1.7]
[1763550048757,2.10419972,139.83,139.81,0.72]
[1763550049046,2.76419972,139.83,139.8,2.42]
[1763550049348,2.10419972,139.82,139.8,2.42]
[1763550050646,2.10419972,139.82,139.8,1.7]
[1763550050852,2.10419972,139.82,139.8,2.36]
[1763550052746,2.78419972,139.81,139.77,0.66]
[1763550052952,2.10419972,139.8,139.79,1.7]
[1763550053252,2.78419972,139.8,139.77,2.36]
[1763550053439,2.10419972,139.79,139.77,2.36]
[1763550054550,0.68,139.8,139.77,2.36]
[1763550054733,2.10419972,139.79,139.77,2.36]
[1763550055756,2.10419972,139.78,139.77,1.7]
[1763550056754,2.10419972,139.8,139.77,2.36]
[1763550057150,2.10419972,139.8,139.78,0.66]
[1763550057756,2.10419972,139.79,139.78,0.66]
[1763550058465,2.10419972,139.8,139.78,0.66]
[1763550058970,2.10419972,139.79,139.77,2.36]
[1763550059165,2.10419972,139.79,139.78,0.66]
[1763550059539,2.10419972,139.79,139.77,2.36]
[1763550059842,2.78419972,139.79,139.76,18.12096]
[1763550060056,2.78419972,139.79,139.76,18.78096]
[1763550060441,2.10419972,139.78,139.76,18.78096]
[1763550062874,2.10419972,139.81,139.77,0.66]
[1763550063079,2.10419972,139.81,139.78,1.7]
[1763550063568,2.10419972,139.8,139.78,2.36]
[1763550064673,2.78419972,139.8,139.78,1.7]
[1763550065265,2.10419972,139.79,139.78,1.7]
[1763550066766,2.78419972,139.79,139.78,1.7]
[1763550067259,2.78419972,139.79,139.73,0.66]
[1763550067467,2.10419972,139.75,139.73,2.36]
[1763550067670,2.10419972,139.76,139.73,2.36]
[1763550067848,2.10419972,139.76,139.74,0.66]
[1763550068446,2.10419972,139.77,139.74,0.66]
[1763550070168,2.10419972,139.8,139.74,20.88515972]
[1763550070376,2.10419972,139.8,139.75,0.66]
[1763550070576,2.10419972,139.8,139.76,1.7]
[1763550071076,2.10419972,139.8,139.77,0.66]
[1763550071386,0.68,139.82,139.77,0.66]
[1763550071560,2.10419972,139.81,139.77,0.66]
[1763550071966,2.78419972,139.81,139.77,0.66]
[1763550072150,2.10419972,139.8,139.77,0.66]
[1763550072565,0.68,139.81,139.77,0.66]
[1763550072767,2.10419972,139.8,139.77,0.66]
[1763550074370,2.78419972,139.8,139.77,0.66]
[1763550075363,2.78419972,139.8,139.76,0.66]
[1763550076071,2.10419972,139.79,139.77,1.7]
[1763550076571,2.10419972,139.78,139.77,1.7]
[1763550077576,2.78419972,139.78,139.75,1.7]
[1763550077874,2.10419972,139.77,139.75,1.7]
[1763550078980,2.10419972,139.77,139.75,2.36]
[1763550079177,2.78419972,139.78,139.75,2.36]
[1763550079475,2.10419972,139.78,139.75,2.36]
[1763550080880,2.80419972,139.77,139.75,1.7]
[1763550081178,2.10419972,139.76,139.72,9.78882769]
[1763550081355,2.10419972,139.75,139.73,1.7]
[1763550081554,2.10419972,139.75,139.73,2.35]
[1763550081877,8.51679888,139.84,139.74,0.65]
[1763550082058,2.10419972,139.78,139.74,0.65]
[1763550082666,2.10419972,139.77,139.74,0.65]
[1763550083050,2.10419972,139.76,139.74,0.65]
[1763550083253,0.7,139.77,139.74,0.65]
[1763550083481,2.80419972,139.77,139.74,0.65]
[1763550083679,2.10419972,139.76,139.74,0.65]
[1763550084175,2.10419972,139.75,139.73,1.7]
[1763550084380,2.10419972,139.75,139.73,2.42]
[1763550085266,2.10419972,139.76,139.73,2.42]
[1763550085583,2.10419972,139.76,139.73,0.72]
[1763550085880,2.10419972,139.75,139.73,1.7]
[1763550087685,0.69,139.76,139.73,2.42]
[1763550087686,2.10419972,139.76,139.73,2.42]
[1763550087980,2.10419972,139.77,139.74,0.72]
[1763550089970,2.10419972,139.76,139.72,0.72]
[1763550090284,2.10419972,139.73,139.71,1.7]
[1763550090478,2.10419972,139.72,139.71,1.7]
[1763550090868,3.9778696,139.72,139.68,2.42]
[1763550091065,3.2878696,139.71,139.68,2.42]
[1763550091289,3.2878696,139.71,139.69,0.72]
[1763550093873,3.2878696,139.72,139.69,0.72]
[1763550097399,18.12096,139.75,139.69,0.72]
[1763550097568,3.2878696,139.73,139.69,0.72]
[1763550097775,3.2878696,139.72,139.69,0.72]
[1763550101177,3.2878696,139.7,139.68,1.7]
[1763550101568,3.2878696,139.7,139.68,2.42]
[1763550103903,3.2878696,139.71,139.69,0.72]
[1763550107702,18.12096,139.75,139.69,0.72]
[1763550107703,3.2878696,139.7,139.69,0.72]
[1763550112498,3.2878696,139.71,139.69,0.72]
[1763550117102,3.2878696,139.7,139.69,0.72]
[1763550118398,3.2878696,139.7,139.68,1.7]
[1763550118604,3.2878696,139.7,139.68,2.4]
[1763550119624,3.2878696,139.69,139.67,1.9]
[1763550119808,3.2878696,139.68,139.67,2.6]
[1763550120408,3.2878696,139.68,139.67,1.9]
[1763550121132,3.9878696,139.68,139.67,1.9]
[1763550121705,3.2878696,139.68,139.67,1.9]
[1763550121906,3.2878696,139.68,139.67,0.2]
[1763550122414,3.9878696,139.68,139.67,0.2]
[1763550123530,3.2878696,139.68,139.67,0.2]
[1763550124315,3.9878696,139.68,139.67,0.2]
[1763550124822,3.2878696,139.68,139.67,0.2]
[1763550125628,4.57036704,139.74,139.67,0.9]
[1763550125629,0.7,139.72,139.67,0.9]
[1763550125829,3.2878696,139.7,139.67,0.9]
[1763550126024,3.2878696,139.7,139.68,0.7]
[1763550127133,3.2878696,139.7,139.68,2.4]
[1763550127837,3.2878696,139.69,139.68,1.7]
[1763550128833,3.2878696,139.69,139.68,2.4]
[1763550133936,3.2878696,139.7,139.68,2.4]
[1763550134133,3.2878696,139.69,139.68,2.4]
[1763550134338,3.2878696,139.69,139.68,2.2388]
[1763550135319,18.12096,139.73,139.68,2.2388]
[1763550135320,0.7,139.73,139.68,2.2388]
[1763550135519,3.2878696,139.72,139.69,0.7]
[1763550135925,3.2878696,139.71,139.69,18.82096]
[1763550136129,0.7,139.72,139.7,1.7]
[1763550136339,3.2878696,139.71,139.7,1.7]
[1763550137048,3.2878696,139.71,139.67,9.98882769]
[1763550137255,3.2878696,139.7,139.68,2.4]
[1763550138444,3.9878696,139.69,139.68,1.7]
[1763550138748,3.2878696,139.69,139.68,1.7]
[1763550138917,3.9878696,139.69,139.68,1.7]
[1763550140319,3.2878696,139.69,139.68,1.7]
[1763550140526,3.2878696,139.69,139.68,2.41]
[1763550140932,3.2878696,139.71,139.68,2.41]
[1763550141230,3.2878696,139.72,139.69,0.71]
[1763550142034,3.2878696,139.72,139.69,18.83096]
[1763550142434,3.2878696,139.72,139.7,0.71]
[1763550142742,3.2878696,139.72,139.71,1.7]
[1763550145920,3.9878696,139.72,139.71,1.7]
[1763550146426,3.9878696,139.72,139.68,1.7]
[1763550146629,18.12096,139.73,139.68,1.7]
[1763550146630,3.2878696,139.69,139.68,1.7]
[1763550146950,3.2878696,139.71,139.69,0.71]
[1763550147443,3.2878696,139.72,139.69,0.71]
[1763550147947,9.78882769,139.8,139.69,3.9978696]
[1763550147948,0.7,139.75,139.69,3.9978696]
[1763550148238,3.2878696,139.74,139.69,3.9978696]
[1763550148444,3.2878696,139.74,139.7,0.71]
[1763550148630,3.2878696,139.74,139.71,1.7]
[1763550148830,3.9878696,139.74,139.71,1.7]
[1763550149146,3.9878696,139.74,139.71,2.41]
[1763550149847,3.9878696,139.73,139.71,1.7]
[1763550150737,3.2878696,139.73,139.71,1.7]
[1763550151047,2.80371765,139.73,139.71,1.7]
[1763550151337,2.10371765,139.73,139.71,1.7]
[1763550152234,2.10371765,139.72,139.71,1.7]
[1763550153350,8.4148706,139.76,139.71,1.7]
[1763550153351,0.7,139.76,139.71,2.41]
[1763550153646,2.10371765,139.73,139.71,2.41]
[1763550153847,2.80371765,139.73,139.71,1.7]
[1763550154548,2.80371765,139.72,139.71,1.7]
[1763550154755,2.80371765,139.72,139.69,1.7]
[1763550155051,2.80371765,139.71,139.69,1.7]
[1763550155528,2.10371765,139.71,139.69,1.7]
[1763550155946,2.10371765,139.71,139.69,2.41]
[1763550156424,2.10371765,139.72,139.7,0.71]
[1763550156831,2.10371765,139.72,139.69,2.41]
[1763550157745,2.10371765,139.72,139.69,0.71]
[1763550158045,18.12096,139.73,139.67,1.9]
[1763550158046,2.10371765,139.7,139.67,1.9]
[1763550158453,2.10371765,139.7,139.67,2.61]
[1763550158629,2.10371765,139.71,139.68,0.71]
[1763550161127,0.7,139.72,139.68,0.71]
[1763550161331,2.80371765,139.72,139.68,0.71]
[1763550161526,26.5358306,139.76,139.68,0.71]
[1763550161730,2.10371765,139.72,139.68,0.71]
[1763550162344,2.80371765,139.72,139.68,0.71]
[1763550164347,2.80371765,139.72,139.69,18.12096]
[1763550164661,2.80371765,139.72,139.7,1.7]
[1763550165245,2.10371765,139.72,139.7,1.7]
[1763550165454,2.10371765,139.72,139.7,2.41]
[1763550165668,2.80371765,139.72,139.7,1.7]
[1763550166869,2.10371765,139.73,139.71,0.71]
[1763550167048,2.10371765,139.74,139.71,0.71]
[1763550167538,2.80371765,139.74,139.71,0.71]
[1763550168360,2.10371765,139.74,139.71,0.71]
[1763550168750,2.80371765,139.74,139.71,0.71]
[1763550169343,2.10371765,139.73,139.71,0.71]
[1763550170765,2.10371765,139.72,139.71,0.71]
[1763550171163,2.10371765,139.72,139.7,1.7]
[1763550171342,2.10371765,139.72,139.7,2.4]
[1763550172356,2.10371765,139.72,139.7,1.7]
[1763550172669,2.10371765,139.72,139.71,0.7]
[1763550173669,2.10371765,139.72,139.7,2.4]
[1763550174050,2.10371765,139.72,139.7,1.7]
[1763550174249,2.10371765,139.72,139.71,0.7]
[1763550176170,2.10371765,139.73,139.71,0.7]
[1763550178657,2.77371765,139.73,139.7,2.4]
[1763550179165,2.10371765,139.71,139.68,9.78882769]
[1763550179368,2.10371765,139.71,139.69,1.7]
[1763550179677,2.10371765,139.71,139.69,2.4]
[1763550180383,18.12096,139.75,139.69,1.7]
[1763550180553,2.10371765,139.71,139.69,1.7]
[1763550180751,2.10371765,139.71,139.69,2.4]
[1763550181455,2.10371765,139.72,139.7,0.7]
[1763550182669,2.10371765,139.73,139.7,0.7]
[1763550183580,2.10371765,139.72,139.7,0.7]
[1763550186661,2.77371765,139.71,139.67,1.9]
[1763550186881,2.10371765,139.68,139.67,1.9]
[1763550187073,2.10371765,139.68,139.67,2.6]
[1763550188578,0.67,139.71,139.67,2.6]
[1763550188759,2.10371765,139.69,139.67,2.6]
[1763550189072,0.67,139.7,139.67,2.6]
[1763550189073,2.10371765,139.68,139.67,2.6]
[1763550189969,2.10371765,139.68,139.67,1.9]
[1763550190172,2.77371765,139.68,139.67,0.2]
[1763550192079,11.18858825,139.68,139.67,0.2]
[1763550194275,29.30954825,139.68,139.66,0.2]
[1763550194479,2.77371765,139.67,139.66,0.2]
[1763550199196,18.12096,139.65,139.63,0.2]
[1763550199360,18.12096,139.61,139.57,0.2]
[1763550199564,30.33954825,139.61,139.57,0.2]
[1763550199780,2.10371765,139.58,139.57,0.2]
[1763550200385,0.57,139.6,139.57,0.2]
[1763550200579,2.10371765,139.58,139.57,0.88]
[1763550200779,2.10371765,139.58,139.57,0.2]
[1763550201172,20.99338827,139.62,139.57,0.88]
[1763550201499,2.10371765,139.58,139.57,0.88]
[1763550201869,2.10371765,139.58,139.57,0.2]
[1763550206083,2.10371765,139.58,139.57,0.89]
[1763550206489,2.10371765,139.58,139.57,0.2]
[1763550207066,2.67371765,139.58,139.57,0.2]
[1763550207790,2.10371765,139.58,139.57,0.89]
[1763550209096,2.10371765,139.6,139.57,0.89]
[1763550209296,2.10371765,139.62,139.58,0.69]
[1763550210610,2.27,139.66,139.58,0.69]
[1763550210611,2.10371765,139.63,139.58,0.69]
[1763550212309,18.12096,139.65,139.59,9.78882769]
[1763550212480,2.10371765,139.64,139.59,13.59254534]
[1763550212678,2.10371765,139.64,139.6,0.69]
[1763550212881,8.4148706,139.68,139.6,0.69]
[1763550212882,3.29104688,139.65,139.6,3.98104688]
[1763550213101,3.29104688,139.65,139.62,9.78882769]
[1763550213284,0.57,139.69,139.62,9.78882769]
[1763550213285,3.29104688,139.66,139.62,9.78882769]
[1763550213484,3.29104688,139.67,139.63,0.69]
[1763550213692,3.29104688,139.68,139.63,0.69]
[1763550214583,3.29104688,139.67,139.63,0.69]
[1763550215791,3.29104688,139.68,139.63,0.69]
[1763550216405,3.29104688,139.67,139.63,0.69]
[1763550217897,3.29104688,139.68,139.63,2.39]
[1763550218288,3.29104688,139.68,139.64,0.69]
[1763550218803,18.69096,139.7,139.64,0.69]
[1763550218804,3.29104688,139.69,139.65,9.78882769]
[1763550218999,3.29104688,139.68,139.64,0.69]
[1763550219206,0.57,139.72,139.64,0.69]
[1763550219207,3.29104688,139.66,139.64,0.69]
[1763550219610,18.12096,139.72,139.65,13.07987457]
[1763550219921,3.29104688,139.73,139.67,13.07987457]
[1763550220217,3.29104688,139.73,139.67,14.77987457]
[1763550220424,3.29104688,139.73,139.68,0.69]
[1763550220593,0.57,139.74,139.68,0.69]
[1763550220921,3.29104688,139.73,139.68,0.69]
[1763550224113,0.57,139.76,139.68,3.98104688]
[1763550224303,3.29104688,139.74,139.69,0.69]
[1763550225214,3.29104688,139.75,139.69,3.98104688]
[1763550225386,3.29104688,139.74,139.69,0.69]
[1763550225592,3.29104688,139.74,139.68,18.12096]
[1763550225593,3.29104688,139.7,139.68,18.81096]
[1763550225788,3.29104688,139.7,139.66,1.7]
[1763550225992,3.29104688,139.7,139.69,0.69]
[1763550227297,3.29104688,139.71,139.69,0.69]
[1763550228713,3.29104688,139.7,139.69,0.69]
[1763550229513,3.29104688,139.72,139.69,0.69]
[1763550229714,3.29104688,139.75,139.7,4.99104688]
[1763550229917,3.29104688,139.77,139.72,3.29104688]
[1763550230309,3.29104688,139.78,139.74,9.78882769]
[1763550230499,3.29104688,139.78,139.74,11.48882769]
[1763550230819,3.29104688,139.78,139.75,0.67]
[1763550231114,3.29104688,139.76,139.75,0.67]
[1763550231419,3.29104688,139.76,139.68,0.7159221]
[1763550231420,3.29104688,139.76,139.7,0.67]
[1763550231623,3.29104688,139.73,139.71,1.7]
[1763550231795,3.29104688,139.73,139.72,0.67]
[1763550232116,3.29104688,139.73,139.71,2.37]
[1763550232500,0.57,139.76,139.69,9.78882769]
[1763550232501,3.29104688,139.72,139.7,1.7]
[1763550232697,3.29104688,139.71,139.7,2.37]
[1763550232901,3.29104688,139.72,139.7,1.7]
[1763550233100,3.29104688,139.72,139.7,2.37]
[1763550233514,3.29104688,139.72,139.7,1.7]
[1763550233717,3.29104688,139.72,139.71,0.67]
[1763550236310,0.57,139.75,139.71,0.67]
[1763550236515,3.29104688,139.72,139.71,0.67]
[1763550236904,3.29104688,139.72,139.69,0.67]
[1763550237106,3.29104688,139.72,139.7,0.67]
[1763550237423,0.57,139.75,139.7,0.67]
[1763550237424,3.29104688,139.71,139.7,0.67]
[1763550238003,3.29104688,139.72,139.7,0.67]
[1763550238899,3.29104688,139.71,139.68,1.7]
[1763550239099,3.29104688,139.69,139.68,2.37]